fUST/lending_fUST_20250511
["ID","MTS","AMOUNT","RATE_DAILY","PERIOD"]
[360678499,1746924641448,-400.0,8.493e-05,2]
[360678500,1746924641458,-1577.67,8.493e-05,2]
[360678501,1746924641468,-400.0,8.493e-05,2]
[360678502,1746924641477,-931.18,8.493e-05,2]
[360678503,1746924641487,-1540.31,8.493e-05,2]
[360678504,1746924641496,-400.0,8.493e-05,2]
[360678505,1746924641505,-400.0,8.493e-05,2]
[360678506,1746924641514,-400.0,8.493e-05,2]
[360678507,1746924641524,-1619.88,8.493e-05,2]
[360678508,1746924641532,-493.86,8.493e-05,2]
[360678509,1746924641542,-400.0,8.493e-05,2]
[360678510,1746924641551,-880.54,8.493e-05,2]
[360678511,1746924641561,-400.0,8.493e-05,2]
[360678512,1746924641570,-741.47,8.493e-05,2]
[360678513,1746924641580,-400.0,8.493e-05,2]
[360678514,1746924641589,-2345.22574854,8.493e-05,2]
[360678515,1746924641603,-725.24,8.493e-05,2]
[360678517,1746924641612,-157.4,8.493e-05,2]
[360678519,1746924641621,-919.13,8.493e-05,2]
[360678521,1746924641632,-400.0,8.493e-05,2]
[360678523,1746924641641,-454.18,8.493e-05,2]
[360678525,1746924641650,-400.0,8.493e-05,2]
[360678527,1746924641660,-400.0,8.493e-05,2]
[360678529,1746924641669,-334.1,8.493e-05,2]
[360678531,1746924641679,-400.0,8.493e-05,2]
[360678533,1746924641688,-400.0,8.493e-05,2]
[360678535,1746924641699,-400.0,8.493e-05,2]
[360678537,1746924641708,-506.62,8.493e-05,2]
[360678539,1746924641717,-2345.22574852,8.699e-05,2]
[360678541,1746924641729,-400.0,8.767e-05,2]
[360678543,1746924641739,-400.0,8.767e-05,2]
[360678545,1746924641748,-400.0,8.767e-05,2]
[360678547,1746924641757,-519.58,8.767e-05,2]
[360678549,1746924641767,-400.0,8.767e-05,2]
[360678551,1746924641777,-400.0,8.767e-05,2]
[360678553,1746924641786,-400.0,8.767e-05,2]
[360678555,1746924641795,-400.0,8.767e-05,2]
[360678557,1746924641804,-400.0,8.767e-05,2]
[360678559,1746924641813,-400.0,8.767e-05,2]
[360678561,1746924641822,-331.39,8.767e-05,2]
[360678563,1746924641831,-400.0,8.767e-05,2]
[360678565,1746924641841,-400.0,8.767e-05,2]
[360678567,1746924641851,-269.56,8.767e-05,2]
[360678569,1746924641860,-400.0,8.767e-05,2]
[360678571,1746924641869,-459.81,8.767e-05,2]
[360678573,1746924641878,-400.0,8.767e-05,2]
[360678575,1746924641887,-400.0,8.767e-05,2]
[360678577,1746924641897,-400.0,8.767e-05,2]
[360678579,1746924641906,-400.0,8.767e-05,2]
[360678581,1746924641915,-400.0,8.767e-05,2]
[360678583,1746924641924,-400.0,8.767e-05,2]
[360678585,1746924641934,-473.21,8.767e-05,2]
[360678587,1746924641943,-400.0,8.767e-05,2]
[360678589,1746924641954,-400.0,8.767e-05,2]
[360678591,1746924641963,-400.0,8.767e-05,2]
[360678593,1746924641972,-400.0,8.767e-05,2]
[360678595,1746924641981,-400.0,8.767e-05,2]
[360678597,1746924641990,-400.0,8.767e-05,2]
[360678599,1746924642001,-400.0,8.767e-05,2]
[360678601,1746924642018,-400.0,8.767e-05,2]
[360678603,1746924642033,-400.0,8.767e-05,2]
[360678605,1746924642042,-861.28,8.767e-05,2]
[360678607,1746924642050,-400.0,8.767e-05,2]
[360678609,1746924642062,-400.0,8.767e-05,2]
[360678611,1746924642071,-400.0,8.767e-05,2]
[360678613,1746924642081,-1653.41,8.767e-05,2]
[360678615,1746924642092,-797.56,8.767e-05,2]
[360678617,1746924642103,-506.41,8.767e-05,2]
[360678619,1746924642113,-400.0,8.767e-05,2]
[360678621,1746924642121,-737.6,8.767e-05,2]
[360678623,1746924642130,-400.0,8.767e-05,2]
[360678625,1746924642140,-400.0,8.767e-05,2]
[360678627,1746924642149,-400.0,8.767e-05,2]
[360678630,1746924642159,-400.0,8.767e-05,2]
[360678632,1746924642169,-487.04,8.767e-05,2]
[360678634,1746924642178,-400.0,8.767e-05,2]
[360678636,1746924642188,-400.0,8.767e-05,2]
[360678638,1746924642197,-1577.67,8.767e-05,2]
[360678640,1746924642207,-400.0,8.767e-05,2]
[360678642,1746924642216,-931.18,8.767e-05,2]
[360678644,1746924642225,-1540.31,8.767e-05,2]
[360678646,1746924642235,-400.0,8.767e-05,2]
[360678648,1746924642244,-400.0,8.767e-05,2]
[360678650,1746924642253,-400.0,8.767e-05,2]
[360678652,1746924642263,-1619.88,8.767e-05,2]
[360678654,1746924642272,-493.86,8.767e-05,2]
[360678656,1746924642281,-400.0,8.767e-05,2]
[360678658,1746924642291,-880.54,8.767e-05,2]
[360678660,1746924642300,-400.0,8.767e-05,2]
[360678662,1746924642309,-400.0,8.767e-05,2]
[360678664,1746924642319,-741.47,8.767e-05,2]
[360678666,1746924642328,-725.24,8.767e-05,2]
[360678685,1746924642498,-919.13,8.767e-05,2]
[360678687,1746924642508,-400.0,8.767e-05,2]
[360678689,1746924642518,-454.18,8.767e-05,2]
[360678691,1746924642527,-356.96149851,8.767e-05,2]
[360678693,1746924642536,-400.0,8.767e-05,2]
[360678695,1746924642545,-400.0,8.767e-05,2]
[360678697,1746924642555,-400.0,8.767e-05,2]
[360678699,1746924642564,-400.0,8.767e-05,2]
[360678701,1746924642573,-506.62,8.767e-05,2]
[360678703,1746924642582,-1800.0,8.9e-05,2]
[360678705,1746924642592,-2345.22574852,8.904e-05,2]
[360678707,1746924642601,-16164.96029108,9e-05,2]
[360678709,1746924642610,-452.0386591,9e-05,2]
[360678711,1746924642620,-1036.60737195,9.01e-05,2]
[360678713,1746924642629,-2000.0,9.02e-05,2]
[360678715,1746924642639,-2000.0,9.025e-05,2]
[360678717,1746924642648,-400.0,9.041e-05,2]
[360678719,1746924642657,-400.0,9.041e-05,2]
[360678721,1746924642666,-400.0,9.041e-05,2]
[360678723,1746924642676,-519.58,9.041e-05,2]
[360678725,1746924642685,-400.0,9.041e-05,2]
[360678727,1746924642695,-400.0,9.041e-05,2]
[360678729,1746924642706,-400.0,9.041e-05,2]
[360678731,1746924642716,-400.0,9.041e-05,2]
[360678733,1746924642726,-400.0,9.041e-05,2]
[360678735,1746924642736,-400.0,9.041e-05,2]
[360678737,1746924642747,-400.0,9.041e-05,2]
[360678739,1746924642756,-400.0,9.041e-05,2]
[360678741,1746924642766,-400.0,9.041e-05,2]
[360678743,1746924642776,-459.81,9.041e-05,2]
[360678745,1746924642785,-349.17,9.041e-05,2]
[360678747,1746924642794,-400.0,9.041e-05,2]
[360678749,1746924642803,-400.0,9.041e-05,2]
[360678751,1746924642814,-400.0,9.041e-05,2]
[360678754,1746924642824,-400.0,9.041e-05,2]
[360678755,1746924642833,-400.0,9.041e-05,2]
[360678757,1746924642842,-400.0,9.041e-05,2]
[360678759,1746924642851,-400.0,9.041e-05,2]
[360678761,1746924642860,-400.0,9.041e-05,2]
[360678763,1746924642869,-400.0,9.041e-05,2]
[360678765,1746924642878,-400.0,9.041e-05,2]
[360678767,1746924642887,-400.0,9.041e-05,2]
[360678769,1746924642897,-400.0,9.041e-05,2]
[360678771,1746924642906,-400.0,9.041e-05,2]
[360678773,1746924642915,-400.0,9.041e-05,2]
[360678775,1746924642924,-861.28,9.041e-05,2]
[360678778,1746924642936,-400.0,9.041e-05,2]
[360678780,1746924642946,-400.0,9.041e-05,2]
[360678782,1746924642955,-400.0,9.041e-05,2]
[360678784,1746924642965,-1653.41,9.041e-05,2]
[360678786,1746924642974,-797.56,9.041e-05,2]
[360678787,1746924642983,-506.41,9.041e-05,2]
[360678789,1746924642992,-400.0,9.041e-05,2]
[360678791,1746924643001,-737.6,9.041e-05,2]
[360678793,1746924643013,-400.0,9.041e-05,2]
[360678795,1746924643025,-400.0,9.041e-05,2]
[360678797,1746924643034,-400.0,9.041e-05,2]
[360678799,1746924643044,-400.0,9.041e-05,2]
[360678801,1746924643053,-487.04,9.041e-05,2]
[360678803,1746924643063,-400.0,9.041e-05,2]
[360678805,1746924643072,-400.0,9.041e-05,2]
[360678807,1746924643082,-1577.67,9.041e-05,2]
[360678809,1746924643092,-400.0,9.041e-05,2]
[360678811,1746924643102,-931.18,9.041e-05,2]
[360678813,1746924643111,-1540.31,9.041e-05,2]
[360678815,1746924643120,-400.0,9.041e-05,2]
[360678817,1746924643130,-400.0,9.041e-05,2]
[360678819,1746924643139,-400.0,9.041e-05,2]
[360678821,1746924643148,-1619.88,9.041e-05,2]
[360678823,1746924643158,-493.86,9.041e-05,2]
[360678825,1746924643168,-400.0,9.041e-05,2]
[360678827,1746924643177,-880.54,9.041e-05,2]
[360678829,1746924643187,-484.56,9.041e-05,2]
[360678831,1746924643196,-400.0,9.041e-05,2]
[360678834,1746924643207,-741.47,9.041e-05,2]
[360678836,1746924643217,-725.24,9.041e-05,2]
[360678838,1746924643227,-919.13,9.041e-05,2]
[360678841,1746924643237,-493.4,9.041e-05,2]
[360678843,1746924643246,-454.18,9.041e-05,2]
[360678846,1746924643255,-400.0,9.041e-05,2]
[360678849,1746924643265,-400.0,9.041e-05,2]
[360678852,1746924643275,-400.0,9.041e-05,2]
[360678855,1746924643286,-400.0,9.041e-05,2]
[360678857,1746924643296,-506.62,9.041e-05,2]
[360678859,1746924643305,-2345.22574852,9.11e-05,2]
[360678861,1746924643314,-1000.0,9.3e-05,2]
[360678864,1746924643323,-400.0,9.315e-05,2]
[360678866,1746924643332,-486.12,9.315e-05,2]
[360678868,1746924643342,-400.0,9.315e-05,2]
[360678870,1746924643351,-519.58,9.315e-05,2]
[360678872,1746924643361,-400.0,9.315e-05,2]
[360678874,1746924643370,-400.0,9.315e-05,2]
[360678876,1746924643380,-514.61,9.315e-05,2]
[360678878,1746924643389,-400.0,9.315e-05,2]
[360678881,1746924643398,-400.0,9.315e-05,2]
[360678883,1746924643407,-400.0,9.315e-05,2]
[360678885,1746924643417,-400.0,9.315e-05,2]
[360678887,1746924643426,-400.0,9.315e-05,2]
[360678888,1746924643435,-400.0,9.315e-05,2]
[360678890,1746924643444,-459.81,9.315e-05,2]
[360678892,1746924643455,-400.0,9.315e-05,2]
[360678893,1746924643465,-400.0,9.315e-05,2]
[360678894,1746924643474,-400.0,9.315e-05,2]
[360678896,1746924643484,-400.0,9.315e-05,2]
[360678897,1746924643494,-400.0,9.315e-05,2]
[360678898,1746924643503,-400.0,9.315e-05,2]
[360678899,1746924643512,-400.0,9.315e-05,2]
[360678900,1746924643521,-400.0,9.315e-05,2]
[360678901,1746924643530,-400.0,9.315e-05,2]
[360678902,1746924643539,-400.0,9.315e-05,2]
[360678903,1746924643548,-400.0,9.315e-05,2]
[360678904,1746924643557,-400.0,9.315e-05,2]
[360678905,1746924643566,-400.0,9.315e-05,2]
[360678906,1746924643575,-400.0,9.315e-05,2]
[360678907,1746924643585,-861.28,9.315e-05,2]
[360678908,1746924643595,-400.0,9.315e-05,2]
[360678909,1746924643604,-400.0,9.315e-05,2]
[360678910,1746924643613,-400.0,9.315e-05,2]
[360678911,1746924643622,-1653.41,9.315e-05,2]
[360678912,1746924643632,-797.56,9.315e-05,2]
[360678913,1746924643641,-506.41,9.315e-05,2]
[360678914,1746924643650,-152.04,9.315e-05,2]
[360678915,1746924643659,-737.6,9.315e-05,2]
[360678916,1746924643669,-400.0,9.315e-05,2]
[360678917,1746924643678,-400.0,9.315e-05,2]
[360678918,1746924643687,-400.0,9.315e-05,2]
[360678919,1746924643697,-400.0,9.315e-05,2]
[360678920,1746924643707,-487.04,9.315e-05,2]
[360678921,1746924643716,-400.0,9.315e-05,2]
[360678922,1746924643726,-167.02,9.315e-05,2]
[360678923,1746924643735,-1577.67,9.315e-05,2]
[360678924,1746924643744,-400.0,9.315e-05,2]
[360678925,1746924643754,-931.18,9.315e-05,2]
[360678926,1746924643763,-1540.31,9.315e-05,2]
[360678927,1746924643772,-400.0,9.315e-05,2]
[360678928,1746924643781,-400.0,9.315e-05,2]
[360678929,1746924643791,-400.0,9.315e-05,2]
[360678930,1746924643800,-1619.88,9.315e-05,2]
[360678931,1746924643809,-493.86,9.315e-05,2]
[360678932,1746924643818,-400.0,9.315e-05,2]
[360678933,1746924643827,-880.54,9.315e-05,2]
[360678934,1746924643837,-400.0,9.315e-05,2]
[360678935,1746924643846,-741.47,9.315e-05,2]
[360678936,1746924643855,-725.24,9.315e-05,2]
[360678937,1746924643864,-919.13,9.315e-05,2]
[360678938,1746924643873,-2345.22574852,9.315e-05,2]
[360678939,1746924643882,-454.18,9.315e-05,2]
[360678940,1746924643891,-400.0,9.315e-05,2]
[360678941,1746924643900,-400.0,9.315e-05,2]
[360678942,1746924643910,-400.0,9.315e-05,2]
[360678943,1746924643919,-400.0,9.315e-05,2]
[360678944,1746924643928,-506.62,9.315e-05,2]
[360678945,1746924643937,-500.0,9.444e-05,2]
[360678946,1746924643947,-500.0,9.444e-05,2]
[360678947,1746924643957,-500.0,9.444e-05,2]
[360678948,1746924643967,-381.59797861,9.444e-05,2]
[360678949,1746924643976,-555.45413413,9.444e-05,2]
[360678950,1746924643985,-500.0,9.447e-05,2]
[360678951,1746924643994,-500.0,9.447e-05,2]
[360678952,1746924644004,-500.0,9.447e-05,2]
[360678953,1746924644013,-500.0,9.447e-05,2]
[360678954,1746924644026,-500.0,9.447e-05,2]
[360678955,1746924644035,-500.0,9.447e-05,2]
[360678956,1746924644045,-500.0,9.447e-05,2]
[360678957,1746924644054,-500.0,9.447e-05,2]
[360678958,1746924644064,-500.0,9.453e-05,2]
[360678959,1746924644073,-500.0,9.453e-05,2]
[360678960,1746924644082,-500.0,9.453e-05,2]
[360678961,1746924644092,-500.0,9.457e-05,2]
[360678962,1746924644101,-500.0,9.469e-05,2]
[360678963,1746924644111,-500.0,9.469e-05,2]
[360678964,1746924644120,-500.0,9.469e-05,2]
[360678965,1746924644130,-512.47820784,9.469e-05,2]
[360678966,1746924644139,-500.0,9.473e-05,2]
[360678967,1746924644148,-500.0,9.473e-05,2]
[360678968,1746924644158,-184.86439987,9.473e-05,2]
[360678969,1746924644168,-500.0,9.473e-05,2]
[360678970,1746924644177,-331.91109397,9.473e-05,2]
[360678971,1746924644187,-160.0,9.549e-05,2]
[360678972,1746924644197,-160.0,9.549e-05,2]
[360678973,1746924644207,-160.0,9.549e-05,2]
[360678974,1746924644216,-212.13671436,9.549e-05,2]
[360678975,1746924644226,-12619.28597579,9.549e-05,2]
[360678976,1746924644236,-842.34118046,9.549e-05,2]
[360678977,1746924644246,-160.0,9.549e-05,2]
[360678978,1746924644255,-422.13686889,9.549e-05,2]
[360678979,1746924644266,-160.0,9.549e-05,2]
[360678980,1746924644275,-160.0,9.549e-05,2]
[360678981,1746924644284,-160.0,9.549e-05,2]
[360678982,1746924644293,-160.0,9.549e-05,2]
[360678983,1746924644303,-314.1579823,9.549e-05,2]
[360678984,1746924644312,-400.0,9.589e-05,2]
[360678985,1746924644321,-400.0,9.589e-05,2]
[360678986,1746924644330,-519.58,9.589e-05,2]
[360678987,1746924644339,-400.0,9.589e-05,2]
[360678988,1746924644348,-400.0,9.589e-05,2]
[360678989,1746924644358,-400.0,9.589e-05,2]
[360678990,1746924644368,-400.0,9.589e-05,2]
[360678991,1746924644377,-400.0,9.589e-05,2]
[360678992,1746924644387,-400.0,9.589e-05,2]
[360678993,1746924644396,-400.0,9.589e-05,2]
[360678994,1746924644405,-400.0,9.589e-05,2]
[360678995,1746924644416,-459.81,9.589e-05,2]
[360678996,1746924644425,-400.0,9.589e-05,2]
[360678997,1746924644434,-400.0,9.589e-05,2]
[360678998,1746924644443,-400.0,9.589e-05,2]
[360678999,1746924644455,-400.0,9.589e-05,2]
[360679000,1746924644464,-400.0,9.589e-05,2]
[360679001,1746924644473,-400.0,9.589e-05,2]
[360679002,1746924644483,-400.0,9.589e-05,2]
[360679003,1746924644492,-400.0,9.589e-05,2]
[360679004,1746924644501,-400.0,9.589e-05,2]
[360679005,1746924644511,-400.0,9.589e-05,2]
[360679006,1746924644520,-400.0,9.589e-05,2]
[360679007,1746924644529,-400.0,9.589e-05,2]
[360679008,1746924644539,-400.0,9.589e-05,2]
[360679009,1746924644548,-400.0,9.589e-05,2]
[360679010,1746924644557,-861.28,9.589e-05,2]
[360679011,1746924644567,-400.0,9.589e-05,2]
[360679012,1746924644576,-400.0,9.589e-05,2]
[360679013,1746924644585,-400.0,9.589e-05,2]
[360679014,1746924644595,-797.56,9.589e-05,2]
[360679015,1746924644604,-1653.41,9.589e-05,2]
[360679016,1746924644613,-506.41,9.589e-05,2]
[360679017,1746924644623,-737.6,9.589e-05,2]
[360679018,1746924644632,-400.0,9.589e-05,2]
[360679019,1746924644642,-400.0,9.589e-05,2]
[360679020,1746924644652,-400.0,9.589e-05,2]
[360679021,1746924644661,-400.0,9.589e-05,2]
[360679022,1746924644670,-487.04,9.589e-05,2]
[360679023,1746924644680,-400.0,9.589e-05,2]
[360679024,1746924644689,-1577.67,9.589e-05,2]
[360679025,1746924644700,-400.0,9.589e-05,2]
[360679026,1746924644709,-931.18,9.589e-05,2]
[360679027,1746924644718,-1540.31,9.589e-05,2]
[360679028,1746924644727,-400.0,9.589e-05,2]
[360679029,1746924644736,-400.0,9.589e-05,2]
[360679030,1746924644745,-400.0,9.589e-05,2]
[360679031,1746924644754,-1619.88,9.589e-05,2]
[360679032,1746924644763,-493.86,9.589e-05,2]
[360679033,1746924644773,-400.0,9.589e-05,2]
[360679034,1746924644782,-880.54,9.589e-05,2]
[360679035,1746924644791,-400.0,9.589e-05,2]
[360679036,1746924644800,-741.47,9.589e-05,2]
[360679037,1746924644810,-725.24,9.589e-05,2]
[360679038,1746924644819,-919.13,9.589e-05,2]
[360679039,1746924644828,-454.18,9.589e-05,2]
[360679040,1746924644837,-400.0,9.589e-05,2]
[360679041,1746924644846,-400.0,9.589e-05,2]
[360679042,1746924644855,-544.62,9.589e-05,2]
[360679043,1746924644865,-400.0,9.589e-05,2]
[360679044,1746924644873,-506.62,9.589e-05,2]
[360679045,1746924644883,-214.8,9.838e-05,2]
[360679046,1746924644892,-400.0,9.863e-05,2]
[360679047,1746924644901,-400.0,9.863e-05,2]
[360679048,1746924644910,-519.58,9.863e-05,2]
[360679049,1746924644919,-400.0,9.863e-05,2]
[360679050,1746924644928,-400.0,9.863e-05,2]
[360679051,1746924644937,-400.0,9.863e-05,2]
[360679052,1746924644947,-400.0,9.863e-05,2]
[360679053,1746924644957,-400.0,9.863e-05,2]
[360679054,1746924644966,-265.71,9.863e-05,2]
[360679055,1746924644975,-400.0,9.863e-05,2]
[360679056,1746924644984,-400.0,9.863e-05,2]
[360679057,1746924644994,-459.81,9.863e-05,2]
[360679058,1746924645003,-400.0,9.863e-05,2]
[360679059,1746924645012,-400.0,9.863e-05,2]
[360679060,1746924645024,-400.0,9.863e-05,2]
[360679061,1746924645034,-400.0,9.863e-05,2]
[360679062,1746924645043,-400.0,9.863e-05,2]
[360679063,1746924645052,-400.0,9.863e-05,2]
[360679064,1746924645063,-400.0,9.863e-05,2]
[360679065,1746924645072,-400.0,9.863e-05,2]
[360679066,1746924645081,-400.0,9.863e-05,2]
[360679067,1746924645091,-400.0,9.863e-05,2]
[360679068,1746924645101,-400.0,9.863e-05,2]
[360679069,1746924645111,-498.43,9.863e-05,2]
[360679070,1746924645120,-400.0,9.863e-05,2]
[360679071,1746924645130,-400.0,9.863e-05,2]
[360679072,1746924645139,-861.28,9.863e-05,2]
[360679073,1746924645148,-223.09,9.863e-05,2]
[360679074,1746924645158,-400.0,9.863e-05,2]
[360679075,1746924645167,-400.0,9.863e-05,2]
[360679076,1746924645177,-797.56,9.863e-05,2]
[360679077,1746924645187,-1653.41,9.863e-05,2]
[360679078,1746924645196,-506.41,9.863e-05,2]
[360679079,1746924645207,-737.6,9.863e-05,2]
[360679080,1746924645217,-400.0,9.863e-05,2]
[360679081,1746924645227,-400.0,9.863e-05,2]
[360679082,1746924645236,-400.0,9.863e-05,2]
[360679083,1746924645246,-400.0,9.863e-05,2]
[360679084,1746924645255,-487.04,9.863e-05,2]
[360679085,1746924645265,-400.0,9.863e-05,2]
[360679087,1746924645275,-1577.67,9.863e-05,2]
[360679089,1746924645285,-400.0,9.863e-05,2]
[360679090,1746924645294,-931.18,9.863e-05,2]
[360679091,1746924645305,-1540.31,9.863e-05,2]
[360679092,1746924645315,-400.0,9.863e-05,2]
[360679093,1746924645324,-400.0,9.863e-05,2]
[360679094,1746924645334,-400.0,9.863e-05,2]
[360679095,1746924645345,-1619.88,9.863e-05,2]
[360679096,1746924645355,-493.86,9.863e-05,2]
[360679097,1746924645365,-400.0,9.863e-05,2]
[360679098,1746924645374,-880.54,9.863e-05,2]
[360679099,1746924645384,-400.0,9.863e-05,2]
[360679100,1746924645393,-741.47,9.863e-05,2]
[360679101,1746924645405,-725.24,9.863e-05,2]
[360679103,1746924645414,-919.13,9.863e-05,2]
[360679105,1746924645423,-454.18,9.863e-05,2]
[360679107,1746924645434,-400.0,9.863e-05,2]
[360679108,1746924645443,-400.0,9.863e-05,2]
[360679110,1746924645454,-400.0,9.863e-05,2]
[360679112,1746924645463,-506.62,9.863e-05,2]
[360679114,1746924645473,-546.0,9.908e-05,2]
[360679117,1746924645482,-2239.0,9.908e-05,2]
[360679120,1746924645491,-708.0,9.908e-05,2]
[360679123,1746924645500,-404.0,9.908e-05,2]
[360679126,1746924645510,-26762.97240779,0.0001,2]
[360679129,1746924645519,-26762.97240765,0.0001,2]
[360679132,1746924645528,-26762.97240765,0.00010041,2]
[360679135,1746924645538,-160.178,0.00010124,2]
[360679138,1746924645547,-257.55,0.00010136,2]
[360679140,1746924645556,-459.35,0.00010136,2]
[360679142,1746924645566,-519.58,0.00010136,2]
[360679144,1746924645575,-400.0,0.00010136,2]
[360679146,1746924645585,-400.0,0.00010136,2]
[360679148,1746924645594,-400.0,0.00010136,2]
[360679150,1746924645603,-400.0,0.00010136,2]
[360679152,1746924645613,-400.0,0.00010136,2]
[360679154,1746924645622,-400.0,0.00010136,2]
[360679156,1746924645632,-210.82,0.00010136,2]
[360679158,1746924645641,-459.81,0.00010136,2]
[360679160,1746924645650,-400.0,0.00010136,2]
[360679162,1746924645660,-400.0,0.00010136,2]
[360679164,1746924645670,-400.0,0.00010136,2]
[360679165,1746924645679,-400.0,0.00010136,2]
[360679168,1746924645688,-400.0,0.00010136,2]
[360679170,1746924645698,-400.0,0.00010136,2]
[360679171,1746924645709,-400.0,0.00010136,2]
[360679173,1746924645718,-400.0,0.00010136,2]
[360679175,1746924645728,-400.0,0.00010136,2]
[360679177,1746924645737,-400.0,0.00010136,2]
[360679179,1746924645747,-400.0,0.00010136,2]
[360679182,1746924645757,-400.0,0.00010136,2]
[360679184,1746924645767,-400.0,0.00010136,2]
[360679186,1746924645778,-861.28,0.00010136,2]
[360679188,1746924645787,-400.0,0.00010136,2]
[360679190,1746924645797,-400.0,0.00010136,2]
[360679192,1746924645807,-797.56,0.00010136,2]
[360679194,1746924645816,-1653.41,0.00010136,2]
[360679196,1746924645826,-506.41,0.00010136,2]
[360679198,1746924645835,-737.6,0.00010136,2]
[360679201,1746924645844,-400.0,0.00010136,2]
[360679204,1746924645854,-400.0,0.00010136,2]
[360679207,1746924645863,-400.0,0.00010136,2]
[360679210,1746924645872,-400.0,0.00010136,2]
[360679212,1746924645881,-487.04,0.00010136,2]
[360679213,1746924645891,-400.0,0.00010136,2]
[360679215,1746924645900,-1577.67,0.00010136,2]
[360679217,1746924645909,-400.0,0.00010136,2]
[360679219,1746924645919,-931.18,0.00010136,2]
[360679220,1746924645928,-1540.31,0.00010136,2]
[360679222,1746924645937,-400.0,0.00010136,2]
[360679224,1746924645946,-400.0,0.00010136,2]
[360679226,1746924645957,-400.0,0.00010136,2]
[360679228,1746924645966,-1619.88,0.00010136,2]
[360679230,1746924645975,-493.86,0.00010136,2]
[360679232,1746924645985,-400.0,0.00010136,2]
[360679234,1746924645995,-880.54,0.00010136,2]
[360679236,1746924646005,-400.0,0.00010136,2]
[360679238,1746924646015,-741.47,0.00010136,2]
[360679240,1746924646028,-725.24,0.00010136,2]
[360679242,1746924646037,-919.13,0.00010136,2]
[360679244,1746924646046,-454.18,0.00010136,2]
[360679246,1746924646056,-535.1,0.00010136,2]
[360679248,1746924646066,-400.0,0.00010136,2]
[360679250,1746924646076,-400.0,0.00010136,2]
[360679252,1746924646085,-506.62,0.00010136,2]
[360679254,1746924646095,-519.58,0.0001041,2]
[360679256,1746924646105,-400.0,0.0001041,2]
[360679258,1746924646114,-400.0,0.0001041,2]
[360679260,1746924646123,-400.0,0.0001041,2]
[360679262,1746924646133,-400.0,0.0001041,2]
[360679264,1746924646142,-400.0,0.0001041,2]
[360679266,1746924646152,-400.0,0.0001041,2]
[360679268,1746924646161,-459.81,0.0001041,2]
[360679270,1746924646171,-400.0,0.0001041,2]
[360679272,1746924646181,-400.0,0.0001041,2]
[360679274,1746924646190,-400.0,0.0001041,2]
[360679276,1746924646201,-400.0,0.0001041,2]
[360679278,1746924646210,-400.0,0.0001041,2]
[360679280,1746924646220,-400.0,0.0001041,2]
[360679282,1746924646230,-400.0,0.0001041,2]
[360679284,1746924646239,-400.0,0.0001041,2]
[360679286,1746924646249,-400.0,0.0001041,2]
[360679288,1746924646259,-400.0,0.0001041,2]
[360679290,1746924646269,-400.0,0.0001041,2]
[360679293,1746924646280,-400.0,0.0001041,2]
[360679295,1746924646289,-400.0,0.0001041,2]
[360679296,1746924646299,-861.28,0.0001041,2]
[360679298,1746924646308,-400.0,0.0001041,2]
[360679300,1746924646318,-400.0,0.0001041,2]
[360679303,1746924646328,-797.56,0.0001041,2]
[360679305,1746924646338,-1653.41,0.0001041,2]
[360679307,1746924646347,-506.41,0.0001041,2]
[360679309,1746924646357,-737.6,0.0001041,2]
[360679311,1746924646366,-400.0,0.0001041,2]
[360679313,1746924646375,-400.0,0.0001041,2]